[Event "*** Titled Tuesday Blitz"]
[Site "Chess.com"]
[Date "2019.08.06"]
[Round "1"]
[White "pedro_gines"]
[Black "hurricane7791"]
[Result "0-1"]
[WhiteElo "2373"]
[BlackElo "2723"]
[TimeControl "180+2"]
[EndTime "13:10:59 PDT"]
[Termination "hurricane7791 won by resignation"]

1. d4 {[%clk 0:02:57.6]} 1... Nf6 {[%clk 0:03:01]} 2. Nf3 {[%clk 0:02:56.4]}
2... e6 {[%clk 0:03:00.8]} 3. g3 {[%clk 0:02:55.9]} 3... c5 {[%clk 0:03:01.5]}
4. Bg2 {[%clk 0:02:56.1]} 4... cxd4 {[%clk 0:03:02.7]} 5. Nxd4 {[%clk 0:02:58]}
5... d5 {[%clk 0:03:04.4]} 6. O-O {[%clk 0:02:53.8]} 6... e5 {[%clk 0:03:05.7]}
7. Nb3 {[%clk 0:02:54.3]} 7... Be6 {[%clk 0:03:06.5]} 8. c4 {[%clk 0:02:53.9]}
8... Nc6 {[%clk 0:03:01.8]} 9. cxd5 {[%clk 0:02:50.8]} 9... Nxd5 {[%clk
0:03:03.7]} 10. N1d2 {[%clk 0:02:34.3]} 10... Rc8 {[%clk 0:03:04.3]} 11. Ne4
{[%clk 0:02:35.3]} 11... b6 {[%clk 0:03:01.6]} 12. Ng5 {[%clk 0:02:35.5]} 12...
Ndb4 {[%clk 0:02:47.2]} 13. Nxe6 {[%clk 0:02:27.7]} 13... Qxd1 {[%clk
0:02:44.1]} 14. Nxg7+ {[%clk 0:02:22.7]} 14... Bxg7 {[%clk 0:02:46]} 15. Rxd1
{[%clk 0:02:23.8]} 15... O-O {[%clk 0:02:45.2]} 16. a3 {[%clk 0:02:21.4]} 16...
Nc2 {[%clk 0:02:45.2]} 17. Rb1 {[%clk 0:02:21.9]} 17... a5 {[%clk 0:02:46.4]}
18. Be4 {[%clk 0:01:56.2]} 18... N6d4 {[%clk 0:02:42.2]} 19. Nxd4 {[%clk
0:01:54.6]} 19... Nxd4 {[%clk 0:02:44.1]} 20. e3 {[%clk 0:01:55.5]} 20... Nb3
{[%clk 0:02:39.2]} 21. Bd2 {[%clk 0:01:55.3]} 21... Nxd2 {[%clk 0:02:33.6]} 22.
Rxd2 {[%clk 0:01:57.2]} 22... f5 {[%clk 0:02:35.4]} 23. Bd5+ {[%clk 0:01:14.6]}
23... Kh8 {[%clk 0:02:35]} 24. Be6 {[%clk 0:00:59.1]} 24... Rc6 {[%clk 0:02:35]}
25. Bd7 {[%clk 0:00:59.6]} 25... Rc7 {[%clk 0:02:36.5]} 26. b4 {[%clk
0:00:41.4]} 26... axb4 {[%clk 0:02:32.5]} 27. axb4 {[%clk 0:00:39.5]} 27... f4
{[%clk 0:02:33.8]} 28. exf4 {[%clk 0:00:29.8]} 28... exf4 {[%clk 0:02:32.7]} 29.
b5 {[%clk 0:00:30.8]} 29... fxg3 {[%clk 0:02:20.5]} 30. hxg3 {[%clk 0:00:32.7]}
30... Bh6 {[%clk 0:02:10.9]} 31. Rd3 {[%clk 0:00:28]} 31... Bg5 {[%clk
0:02:07.6]} 32. Bc6 {[%clk 0:00:27.8]} 32... Be7 {[%clk 0:02:08.9]} 33. Rbd1
{[%clk 0:00:27.5]} 33... Bc5 {[%clk 0:02:10.3]} 34. R1d2 {[%clk 0:00:28.4]}
34... Rcf7 {[%clk 0:02:11.6]} 35. Rd8 {[%clk 0:00:26.4]} 35... Rxf2 {[%clk
0:02:04.7]} 36. Rxf8+ {[%clk 0:00:26.9]} 36... Rxf8+ {[%clk 0:02:06.6]} 37. Kg2
{[%clk 0:00:28.2]} 37... h6 {[%clk 0:02:04]} 38. Re2 {[%clk 0:00:27.3]} 38...
Kh7 {[%clk 0:02:04.5]} 39. Rd2 {[%clk 0:00:28.5]} 39... Kg6 {[%clk 0:02:05.6]}
40. Re2 {[%clk 0:00:30]} 40... Kg5 {[%clk 0:02:03.7]} 41. Re5+ {[%clk
0:00:30.9]} 41... Kf6 {[%clk 0:02:04.2]} 42. Re4 {[%clk 0:00:31.6]} 42... Rd8
{[%clk 0:02:04.9]} 43. Rf4+ {[%clk 0:00:32.7]} 43... Kg5 {[%clk 0:02:06.4]} 44.
Re4 {[%clk 0:00:33.6]} 44... Rd3 {[%clk 0:02:06.4]} 45. Re5+ {[%clk 0:00:34]}
45... Kf6 {[%clk 0:02:06.7]} 46. Re4 {[%clk 0:00:33.9]} 46... Bd6 {[%clk
0:02:07.7]} 47. g4 {[%clk 0:00:35.1]} 47... Rg3+ {[%clk 0:02:06.2]} 48. Kf2
{[%clk 0:00:35.9]} 48... Ra3 {[%clk 0:02:07.6]} 49. Ke2 {[%clk 0:00:36.8]} 49...
Kg5 {[%clk 0:02:08.5]} 50. Re6 {[%clk 0:00:36.3]} 50... Bc5 {[%clk 0:02:08.2]}
51. Be8 {[%clk 0:00:29.6]} 51... Kxg4 {[%clk 0:02:06.6]} 52. Rg6+ {[%clk
0:00:27]} 52... Kf5 {[%clk 0:02:05.7]} 53. Rg8 {[%clk 0:00:25.6]} 53... Re3+
{[%clk 0:02:03]} 54. Kd2 {[%clk 0:00:26.7]} 54... Re7 {[%clk 0:02:04.4]} 55. Bc6
{[%clk 0:00:22.5]} 55... h5 {[%clk 0:02:05.5]} 56. Rf8+ {[%clk 0:00:23.2]} 56...
Kg5 {[%clk 0:02:06.7]} 57. Rg8+ {[%clk 0:00:24.6]} 57... Kf4 {[%clk 0:02:07.3]}
58. Rf8+ {[%clk 0:00:25.6]} 58... Kg3 {[%clk 0:02:08.7]} 59. Rg8+ {[%clk
0:00:27]} 59... Kh3 {[%clk 0:02:09.1]} 60. Bg2+ {[%clk 0:00:27.5]} 60... Kh2
{[%clk 0:02:09.4]} 61. Bd5 {[%clk 0:00:24.1]} 61... Rd7 {[%clk 0:02:05]} 62. Rg5
{[%clk 0:00:25.1]} 62... h4 {[%clk 0:02:06.4]} 63. Ke2 {[%clk 0:00:25.6]} 63...
h3 {[%clk 0:02:07.2]} 64. Rh5 {[%clk 0:00:20.7]} 64... Re7+ {[%clk 0:02:06.3]}
65. Kf3 {[%clk 0:00:21.2]} 65... Re3+ {[%clk 0:02:06.9]} 66. Kf4 {[%clk
0:00:22.2]} 66... Rg3 {[%clk 0:02:05.6]} 67. Be6 {[%clk 0:00:22.2]} 67... Bd6+
{[%clk 0:02:04]} 68. Ke4 {[%clk 0:00:22.8]} 68... Kg2 {[%clk 0:02:05.4]} 69. Kd5
{[%clk 0:00:22.7]} 69... Bc5 {[%clk 0:02:04.4]} 70. Kc6 {[%clk 0:00:20.3]} 70...
h2 {[%clk 0:02:05.6]} 71. Bd5+ {[%clk 0:00:21.1]} 71... Kg1 {[%clk 0:02:07.5]}
72. Rh6 {[%clk 0:00:21.3]} 72... Rg5 {[%clk 0:02:07.2]} 73. Be4 {[%clk
0:00:18.9]} 73... Re5 {[%clk 0:02:07.9]} 74. Rg6+ {[%clk 0:00:16.9]} 74... Kf2
{[%clk 0:02:08.5]} 75. Bh1 {[%clk 0:00:17.6]} 75... Re1 {[%clk 0:02:09.4]} 76.
Rg2+ {[%clk 0:00:18.2]} 76... Kf3 {[%clk 0:02:06.4]} 77. Rxh2+ {[%clk
0:00:20.1]} 77... Kg3 {[%clk 0:02:06.1]} 78. Rh6 {[%clk 0:00:20.7]} 78... Kf4
{[%clk 0:02:03.2]} 79. Bd5 {[%clk 0:00:21.1]} 79... Kg5 {[%clk 0:02:04.1]} 80.
Rh7 {[%clk 0:00:21.3]} 80... Kg6 {[%clk 0:02:04.1]} 81. Rh2 {[%clk 0:00:22.1]}
81... Re7 {[%clk 0:02:04.2]} 82. Rg2+ {[%clk 0:00:22.7]} 82... Kf6 {[%clk
0:02:05.1]} 83. Rg3 {[%clk 0:00:22.6]} 83... Rh7 {[%clk 0:02:04.3]} 84. Rc3
{[%clk 0:00:19.8]} 84... Bd4 {[%clk 0:02:03.6]} 85. Rc4 {[%clk 0:00:20.4]} 85...
Ke5 {[%clk 0:02:01.6]} 86. Bg8 {[%clk 0:00:19]} 86... Rh8 {[%clk 0:01:59.8]} 87.
Bf7 {[%clk 0:00:18.6]} 87... Rf8 {[%clk 0:01:53.8]} 88. Rxd4 {[%clk 0:00:07.1]}
88... Kxd4 {[%clk 0:01:50.9]} 89. Be6 {[%clk 0:00:05.2]} 89... Rf6 {[%clk
0:01:51.4]} 90. Kd6 {[%clk 0:00:06.3]} 90... Rh6 {[%clk 0:01:50.2]} 91. Ke7
{[%clk 0:00:03.4]} 91... Kc5 {[%clk 0:01:52.1]} 92. Bd7 {[%clk 0:00:04.2]} 92...
Rh7+ {[%clk 0:01:53.2]} 0-1

[Event "*** Titled Tuesday Blitz"]
[Site "Chess.com"]
[Date "2019.08.06"]
[Round "1"]
[White "darsen_sanzhaev"]
[Black "Spring199"]
[Result "1-0"]
[WhiteElo "2594"]
[BlackElo "2200"]
[TimeControl "180+2"]
[EndTime "13:11:13 PDT"]
[Termination "darsen_sanzhaev won by resignation"]

1. d4 {[%clk 0:03:01.9]} 1... Nf6 {[%clk 0:02:58.9]} 2. c4 {[%clk 0:03:03.4]}
2... e6 {[%clk 0:02:59.6]} 3. g3 {[%clk 0:03:05.1]} 3... d5 {[%clk 0:02:59.6]}
4. Bg2 {[%clk 0:03:06.4]} 4... Be7 {[%clk 0:03:00.9]} 5. Nf3 {[%clk 0:03:08]}
5... O-O {[%clk 0:03:02.2]} 6. O-O {[%clk 0:03:08.3]} 6... dxc4 {[%clk
0:03:02.5]} 7. Ne5 {[%clk 0:03:08.4]} 7... c5 {[%clk 0:03:02.5]} 8. dxc5 {[%clk
0:03:06.8]} 8... Qc7 {[%clk 0:03:02.9]} 9. Nxc4 {[%clk 0:03:02]} 9... Qxc5
{[%clk 0:03:01.4]} 10. b3 {[%clk 0:03:02.4]} 10... Rd8 {[%clk 0:03:01.5]} 11.
Qc2 {[%clk 0:03:00]} 11... Nc6 {[%clk 0:03:02]} 12. Nbd2 {[%clk 0:02:53.9]}
12... Qh5 {[%clk 0:02:45.1]} 13. e3 {[%clk 0:02:47.3]} 13... Nb4 {[%clk
0:02:30.3]} 14. Qd1 {[%clk 0:02:32.3]} 14... Qxd1 {[%clk 0:02:28.8]} 15. Rxd1
{[%clk 0:02:34.2]} 15... Nd3 {[%clk 0:02:19.7]} 16. Ne4 {[%clk 0:02:28.2]} 16...
Nxc1 {[%clk 0:02:13.8]} 17. Raxc1 {[%clk 0:02:21.4]} 17... Nd5 {[%clk
0:02:10.5]} 18. Nc3 {[%clk 0:02:08.3]} 18... Nxc3 {[%clk 0:02:07.2]} 19. Rxd8+
{[%clk 0:02:10.2]} 19... Bxd8 {[%clk 0:02:07.8]} 20. Rxc3 {[%clk 0:02:12.1]}
20... Be7 {[%clk 0:01:58.6]} 21. Rd3 {[%clk 0:01:38]} 21... Rb8 {[%clk
0:01:55.4]} 22. Na5 {[%clk 0:01:21.8]} 22... Kf8 {[%clk 0:01:47.6]} 23. Nc4
{[%clk 0:00:40.5]} 23... f6 {[%clk 0:01:31.7]} 24. h4 {[%clk 0:00:39]} 24... e5
{[%clk 0:01:32]} 25. Nd6 {[%clk 0:00:38.3]} 25... Bxd6 {[%clk 0:01:29.4]} 26.
Rxd6 {[%clk 0:00:40.2]} 26... Ke7 {[%clk 0:01:30.7]} 27. Rd2 {[%clk 0:00:28.1]}
27... Be6 {[%clk 0:01:25.2]} 28. Kf1 {[%clk 0:00:18.4]} 28... b6 {[%clk
0:01:25.9]} 29. Ke2 {[%clk 0:00:18.2]} 29... Rc8 {[%clk 0:01:26.6]} 30. Kd1
{[%clk 0:00:17.7]} 30... Bg4+ {[%clk 0:01:25.3]} 31. f3 {[%clk 0:00:18.9]} 31...
Be6 {[%clk 0:01:24.7]} 32. Rc2 {[%clk 0:00:15.9]} 32... Rd8+ {[%clk 0:01:19.2]}
33. Rd2 {[%clk 0:00:17]} 33... Rc8 {[%clk 0:01:18.5]} 34. Rc2 {[%clk 0:00:18.4]}
34... Rxc2 {[%clk 0:01:06.6]} 35. Kxc2 {[%clk 0:00:20.3]} 35... Kd6 {[%clk
0:01:08.5]} 36. Kc3 {[%clk 0:00:21.1]} 36... Kc5 {[%clk 0:01:09.3]} 37. b4+
{[%clk 0:00:22.2]} 37... Kb5 {[%clk 0:01:08.5]} 38. a3 {[%clk 0:00:23.4]} 38...
Ka4 {[%clk 0:01:08.4]} 39. Kb2 {[%clk 0:00:24.6]} 39... f5 {[%clk 0:00:56.4]}
40. f4 {[%clk 0:00:19]} 40... exf4 {[%clk 0:00:47.9]} 41. Bc6+ {[%clk
0:00:18.1]} 41... b5 {[%clk 0:00:48.5]} 42. gxf4 {[%clk 0:00:16.9]} 42... a5
{[%clk 0:00:49.1]} 43. Kc3 {[%clk 0:00:16]} 43... Bc4 {[%clk 0:00:22.6]} 44.
bxa5 {[%clk 0:00:17.9]} 44... Kxa5 {[%clk 0:00:23.1]} 45. Bd7 {[%clk 0:00:15.6]}
45... Ka4 {[%clk 0:00:20.9]} 46. Bxf5 {[%clk 0:00:14.9]} 46... Kxa3 {[%clk
0:00:20.1]} 47. Bxh7 {[%clk 0:00:15.1]} 47... Bf7 {[%clk 0:00:20.7]} 48. Bd3
{[%clk 0:00:12.5]} 48... b4+ {[%clk 0:00:21.3]} 49. Kd4 {[%clk 0:00:13.7]} 49...
b3 {[%clk 0:00:22.1]} 50. e4 {[%clk 0:00:13.3]} 50... b2 {[%clk 0:00:22]} 51. e5
{[%clk 0:00:14.3]} 51... Be6 {[%clk 0:00:20.7]} 52. f5 {[%clk 0:00:15.3]} 52...
Bf7 {[%clk 0:00:18.8]} 53. e6 {[%clk 0:00:15.5]} 53... Be8 {[%clk 0:00:19.7]}
54. Ke5 {[%clk 0:00:16.9]} 54... Kb3 {[%clk 0:00:20.4]} 55. Bb1 {[%clk
0:00:15.7]} 55... Kc3 {[%clk 0:00:20.5]} 56. f6 {[%clk 0:00:16.1]} 56... gxf6+
{[%clk 0:00:21]} 57. Kxf6 {[%clk 0:00:18]} 57... Kd4 {[%clk 0:00:20.4]} 58. Ke7
{[%clk 0:00:15.9]} 58... Bh5 {[%clk 0:00:20.3]} 59. Kd6 {[%clk 0:00:16.6]} 59...
Ke3 {[%clk 0:00:19.6]} 60. Ke5 {[%clk 0:00:15.2]} 60... Kf3 {[%clk 0:00:19.3]}
61. Kf5 {[%clk 0:00:16.6]} 61... Kg3 {[%clk 0:00:17.6]} 62. Kg5 {[%clk
0:00:18.1]} 62... Be8 {[%clk 0:00:11.9]} 63. h5 {[%clk 0:00:19.2]} 63... Bxh5
{[%clk 0:00:02]} 64. Kxh5 {[%clk 0:00:20.3]} 64... Kf4 {[%clk 0:00:03.9]} 65. e7
{[%clk 0:00:21.8]} 1-0

[Event "*** Titled Tuesday Blitz"]
[Site "Chess.com"]
[Date "2019.08.06"]
[Round "1"]
[White "vpsetter"]
[Black "JakeCarlosBanawa"]
[Result "1/2-1/2"]
[WhiteElo "2645"]
[BlackElo "2465"]
[TimeControl "180+2"]
[EndTime "13:11:35 PDT"]
[Termination "Game drawn by repetition"]

1. e4 {[%clk 0:03:01.6]} 1... c5 {[%clk 0:03:01]} 2. Nf3 {[%clk 0:03:02.1]} 2...
d6 {[%clk 0:03:02.6]} 3. d4 {[%clk 0:03:02.9]} 3... cxd4 {[%clk 0:03:04.5]} 4.
Nxd4 {[%clk 0:03:04.5]} 4... Nf6 {[%clk 0:03:05.8]} 5. Nc3 {[%clk 0:03:05.2]}
5... a6 {[%clk 0:03:07.3]} 6. Be2 {[%clk 0:03:04.2]} 6... e5 {[%clk 0:03:07.7]}
7. Nb3 {[%clk 0:03:03.6]} 7... Be7 {[%clk 0:03:08.9]} 8. O-O {[%clk 0:03:04.6]}
8... O-O {[%clk 0:03:09.5]} 9. Kh1 {[%clk 0:03:03.6]} 9... Be6 {[%clk
0:02:59.8]} 10. f4 {[%clk 0:03:03.5]} 10... exf4 {[%clk 0:03:01]} 11. Bxf4
{[%clk 0:03:01.8]} 11... Nc6 {[%clk 0:03:01.8]} 12. Bf3 {[%clk 0:03:02.3]} 12...
Ne5 {[%clk 0:02:59.6]} 13. Nd4 {[%clk 0:03:01.6]} 13... Rc8 {[%clk 0:02:59.4]}
14. Nf5 {[%clk 0:01:25.4]} 14... Re8 {[%clk 0:02:29.9]} 15. Qd4 {[%clk
0:01:19.2]} 15... Rc4 {[%clk 0:02:24.2]} 16. Qd2 {[%clk 0:01:08.1]} 16... Qc7
{[%clk 0:02:24.3]} 17. Ne3 {[%clk 0:00:51.3]} 17... Rc5 {[%clk 0:01:45.2]} 18.
Ncd5 {[%clk 0:00:42.3]} 18... Bxd5 {[%clk 0:01:35.3]} 19. exd5 {[%clk
0:00:38.7]} 19... Nxf3 {[%clk 0:01:27.8]} 20. Rxf3 {[%clk 0:00:33.8]} 20... Nh5
{[%clk 0:01:27.7]} 21. g3 {[%clk 0:00:12]} 21... Nxf4 {[%clk 0:01:02.2]} 22.
gxf4 {[%clk 0:00:12.3]} 22... Bf6 {[%clk 0:00:53.6]} 23. c3 {[%clk 0:00:13.4]}
23... g6 {[%clk 0:00:50.9]} 24. f5 {[%clk 0:00:13.2]} 24... Bg5 {[%clk
0:00:48.9]} 25. Rg1 {[%clk 0:00:12.5]} 25... Qe7 {[%clk 0:00:48.7]} 26. Rgg3
{[%clk 0:00:07.2]} 26... Qe4 {[%clk 0:00:41.3]} 27. fxg6 {[%clk 0:00:04.4]}
27... hxg6 {[%clk 0:00:40.7]} 28. Qf2 {[%clk 0:00:04.8]} 28... Bxe3 {[%clk
0:00:20.8]} 29. Qxe3 {[%clk 0:00:04.8]} 29... Qb1+ {[%clk 0:00:21.8]} 30. Qg1
{[%clk 0:00:05.5]} 30... Qc2 {[%clk 0:00:21.8]} 31. Rf2 {[%clk 0:00:05.4]} 31...
Qe4+ {[%clk 0:00:22.3]} 32. Qg2 {[%clk 0:00:06.5]} 32... Qb1+ {[%clk 0:00:22.4]}
33. Rf1 {[%clk 0:00:06.9]} 33... Re1 {[%clk 0:00:23.5]} 34. Rf3 {[%clk
0:00:07.6]} 34... Rxd5 {[%clk 0:00:23]} 35. Rxf7 {[%clk 0:00:07.9]} 35... Rxf1+
{[%clk 0:00:24]} 36. Rxf1 {[%clk 0:00:07.5]} 36... Rd1 {[%clk 0:00:24.1]} 37.
Kg1 {[%clk 0:00:04.9]} 37... Rxf1+ {[%clk 0:00:22.3]} 38. Qxf1 {[%clk
0:00:05.9]} 38... Qxb2 {[%clk 0:00:23.6]} 39. Qd3 {[%clk 0:00:06.7]} 39... Qa1+
{[%clk 0:00:23.2]} 40. Kg2 {[%clk 0:00:06.3]} 40... Qxa2+ {[%clk 0:00:24.7]} 41.
Kg3 {[%clk 0:00:07.4]} 41... Qe6 {[%clk 0:00:24.2]} 42. Qb1 {[%clk 0:00:06.1]}
42... Qe5+ {[%clk 0:00:22.2]} 43. Kg2 {[%clk 0:00:06.6]} 43... Qd5+ {[%clk
0:00:21.5]} 44. Kg3 {[%clk 0:00:07.2]} 44... b5 {[%clk 0:00:22.2]} 45. Qxg6+
{[%clk 0:00:06.9]} 45... Kf8 {[%clk 0:00:23.5]} 46. Qf6+ {[%clk 0:00:07.8]}
46... Ke8 {[%clk 0:00:24.9]} 47. h4 {[%clk 0:00:06.6]} 47... a5 {[%clk
0:00:21.3]} 48. Qg6+ {[%clk 0:00:05.8]} 48... Qf7 {[%clk 0:00:21.3]} 49. Qe4+
{[%clk 0:00:05.8]} 49... Qe7 {[%clk 0:00:20.5]} 50. Qa8+ {[%clk 0:00:06.5]}
50... Kf7 {[%clk 0:00:20]} 51. Qd5+ {[%clk 0:00:06.7]} 51... Qe6 {[%clk
0:00:19.7]} 52. Qxb5 {[%clk 0:00:06.5]} 52... Qe3+ {[%clk 0:00:20.7]} 53. Kg4
{[%clk 0:00:06.8]} 53... Qxc3 {[%clk 0:00:21.4]} 54. Qb7+ {[%clk 0:00:06.4]}
54... Ke6 {[%clk 0:00:21.9]} 55. Qe4+ {[%clk 0:00:06]} 55... Qe5 {[%clk
0:00:22]} 56. Qc4+ {[%clk 0:00:06.9]} 56... Qd5 {[%clk 0:00:21.6]} 57. Qc8+
{[%clk 0:00:07.8]} 57... Kf6 {[%clk 0:00:21.6]} 58. Qd8+ {[%clk 0:00:08.5]}
58... Ke5 {[%clk 0:00:22.3]} 59. Qg5+ {[%clk 0:00:08.8]} 59... Kd4 {[%clk
0:00:23.1]} 60. Qd2+ {[%clk 0:00:09.3]} 60... Ke5 {[%clk 0:00:23]} 61. Qg5+
{[%clk 0:00:09.9]} 61... Ke6 {[%clk 0:00:24.2]} 62. Qg8+ {[%clk 0:00:10.3]}
62... Ke5 {[%clk 0:00:25]} 63. Qg7+ {[%clk 0:00:11.4]} 63... Ke4 {[%clk
0:00:25.4]} 64. h5 {[%clk 0:00:12]} 64... Qf5+ {[%clk 0:00:25.3]} 65. Kh4 {[%clk
0:00:12.7]} 65... Qf2+ {[%clk 0:00:20.6]} 66. Kg5 {[%clk 0:00:11.6]} 66... Qf4+
{[%clk 0:00:18.3]} 67. Kg6 {[%clk 0:00:11.2]} 67... Qf5+ {[%clk 0:00:19.2]} 68.
Kh6 {[%clk 0:00:11.6]} 68... Qf4+ {[%clk 0:00:20.6]} 69. Kh7 {[%clk 0:00:12.4]}
69... Qf5+ {[%clk 0:00:18.4]} 70. Kh6 {[%clk 0:00:13.2]} 70... a4 {[%clk
0:00:19.2]} 71. Qb7+ {[%clk 0:00:10.3]} 71... Ke5 {[%clk 0:00:18.6]} 72. Qb5+
{[%clk 0:00:10.5]} 72... d5 {[%clk 0:00:19.5]} 73. Qxa4 {[%clk 0:00:07.4]} 73...
Qf6+ {[%clk 0:00:20.7]} 74. Kh7 {[%clk 0:00:07.6]} 74... Qf7+ {[%clk 0:00:21.5]}
75. Kh6 {[%clk 0:00:08.4]} 75... Qf6+ {[%clk 0:00:19.7]} 76. Kh7 {[%clk
0:00:09.2]} 76... Qf7+ {[%clk 0:00:20.5]} 77. Kh6 {[%clk 0:00:04.5]} 77... Qf6+
{[%clk 0:00:19.2]} 1/2-1/2

[Event "*** Titled Tuesday Blitz"]
[Site "Chess.com"]
[Date "2019.08.06"]
[Round "1"]
[White "vova-79"]
[Black "David_Paravyan"]
[Result "0-1"]
[WhiteElo "2460"]
[BlackElo "2890"]
[TimeControl "180+2"]
[EndTime "13:12:02 PDT"]
[Termination "David_Paravyan won by resignation"]

1. d4 {[%clk 0:03:01]} 1... Nf6 {[%clk 0:02:59.8]} 2. c4 {[%clk 0:02:59.9]} 2...
e6 {[%clk 0:03:01.3]} 3. Nc3 {[%clk 0:03:00.6]} 3... Bb4 {[%clk 0:03:01]} 4. e3
{[%clk 0:03:01.1]} 4... d5 {[%clk 0:03:01]} 5. a3 {[%clk 0:02:58.5]} 5... Be7
{[%clk 0:03:00]} 6. cxd5 {[%clk 0:02:43.3]} 6... exd5 {[%clk 0:03:00.7]} 7. Nge2
{[%clk 0:02:43.3]} 7... O-O {[%clk 0:03:01.1]} 8. Nf4 {[%clk 0:02:43.2]} 8...
Re8 {[%clk 0:03:01]} 9. Bd3 {[%clk 0:02:35.3]} 9... Na6 {[%clk 0:02:58.9]} 10.
O-O {[%clk 0:02:24.4]} 10... c6 {[%clk 0:02:54.5]} 11. b4 {[%clk 0:02:13.2]}
11... Nc7 {[%clk 0:02:53.7]} 12. Kh1 {[%clk 0:02:07.6]} 12... a5 {[%clk
0:02:47.6]} 13. Rb1 {[%clk 0:02:06.1]} 13... b5 {[%clk 0:02:45.3]} 14. f3 {[%clk
0:02:00.6]} 14... Na6 {[%clk 0:02:24.3]} 15. Na2 {[%clk 0:01:58.7]} 15... Bd6
{[%clk 0:02:08]} 16. Bd2 {[%clk 0:01:39.4]} 16... axb4 {[%clk 0:01:55.7]} 17.
axb4 {[%clk 0:01:35.7]} 17... Qe7 {[%clk 0:01:55.8]} 18. Qc2 {[%clk 0:01:27.7]}
18... Bd7 {[%clk 0:01:54]} 19. Rfc1 {[%clk 0:01:26.3]} 19... h6 {[%clk
0:01:52.3]} 20. Bf5 {[%clk 0:01:22.1]} 20... Rec8 {[%clk 0:01:41]} 21. Bxd7
{[%clk 0:01:20.6]} 21... Qxd7 {[%clk 0:01:42.9]} 22. Nd3 {[%clk 0:01:21.3]}
22... Qe7 {[%clk 0:01:27.1]} 23. Re1 {[%clk 0:01:12.5]} 23... h5 {[%clk
0:01:20.4]} 24. Nac1 {[%clk 0:01:06.6]} 24... Nd7 {[%clk 0:01:13.9]} 25. Nc5
{[%clk 0:01:03.9]} 25... Nb6 {[%clk 0:01:13.4]} 26. Ra1 {[%clk 0:01:01.1]} 26...
Bxc5 {[%clk 0:01:06.9]} 27. dxc5 {[%clk 0:00:55.8]} 27... Nc4 {[%clk 0:01:07.7]}
28. Qf5 {[%clk 0:00:38.6]} 28... g6 {[%clk 0:00:59.8]} 29. Qd3 {[%clk
0:00:36.8]} 29... Re8 {[%clk 0:00:41.1]} 30. Bc3 {[%clk 0:00:33.5]} 30... Nxb4
{[%clk 0:00:40.5]} 31. Qd4 {[%clk 0:00:31.7]} 31... f6 {[%clk 0:00:35.1]} 32.
Rxa8 {[%clk 0:00:30.6]} 32... Rxa8 {[%clk 0:00:37]} 33. Bxb4 {[%clk 0:00:31.4]}
33... Ra4 {[%clk 0:00:38.6]} 34. Bc3 {[%clk 0:00:31.4]} 34... Ne5 {[%clk
0:00:33.6]} 35. Qd2 {[%clk 0:00:28.8]} 35... Qxc5 {[%clk 0:00:34.5]} 36. Bd4
{[%clk 0:00:25.7]} 36... Qc4 {[%clk 0:00:32.4]} 37. h3 {[%clk 0:00:23.9]} 37...
Kf7 {[%clk 0:00:30.6]} 38. Bxe5 {[%clk 0:00:22.2]} 38... fxe5 {[%clk 0:00:32.5]}
39. e4 {[%clk 0:00:24.1]} 39... d4 {[%clk 0:00:31.4]} 40. Qh6 {[%clk 0:00:23.1]}
40... Ra1 {[%clk 0:00:30.7]} 41. Rg1 {[%clk 0:00:20.3]} 41... Qe6 {[%clk
0:00:26.3]} 42. f4 {[%clk 0:00:19.2]} 42... exf4 {[%clk 0:00:18.6]} 43. Qxf4+
{[%clk 0:00:19]} 43... Kg7 {[%clk 0:00:15.9]} 44. Nd3 {[%clk 0:00:19]} 44...
Rxg1+ {[%clk 0:00:09.2]} 45. Kxg1 {[%clk 0:00:20.9]} 45... Qe7 {[%clk 0:00:09]}
46. e5 {[%clk 0:00:13.1]} 46... c5 {[%clk 0:00:06.8]} 47. Qe4 {[%clk 0:00:10.1]}
47... Qe6 {[%clk 0:00:03.8]} 48. Nf4 {[%clk 0:00:09.9]} 48... Qf5 {[%clk
0:00:05.3]} 49. Qb7+ {[%clk 0:00:08.3]} 49... Kh6 {[%clk 0:00:05.5]} 50. g3
{[%clk 0:00:09.5]} 50... Qb1+ {[%clk 0:00:05]} 51. Kg2 {[%clk 0:00:09.4]} 51...
Qc2+ {[%clk 0:00:06.6]} 52. Kg1 {[%clk 0:00:10.2]} 52... Qd1+ {[%clk 0:00:07.9]}
53. Kg2 {[%clk 0:00:11.1]} 53... Qd2+ {[%clk 0:00:09.4]} 54. Kg1 {[%clk
0:00:12.1]} 54... Qe1+ {[%clk 0:00:10.6]} 55. Kg2 {[%clk 0:00:12.8]} 55... Qd2+
{[%clk 0:00:09.6]} 56. Kg1 {[%clk 0:00:11.7]} 56... Qe3+ {[%clk 0:00:11.1]} 57.
Kg2 {[%clk 0:00:11.9]} 57... h4 {[%clk 0:00:06.5]} 58. Qf3 {[%clk 0:00:07.4]}
58... Qxe5 {[%clk 0:00:06.6]} 59. gxh4 {[%clk 0:00:06.6]} 59... c4 {[%clk
0:00:07.2]} 60. Qg4 {[%clk 0:00:07]} 60... Qe4+ {[%clk 0:00:05.7]} 61. Kg3
{[%clk 0:00:05.9]} 61... Qe3+ {[%clk 0:00:06.7]} 62. Kg2 {[%clk 0:00:06.2]}
62... Qe4+ {[%clk 0:00:08.1]} 63. Kg3 {[%clk 0:00:06.7]} 63... Qf5 {[%clk
0:00:09.6]} 64. Qf3 {[%clk 0:00:03.8]} 64... d3 {[%clk 0:00:05.9]} 65. Nd5
{[%clk 0:00:04.2]} 65... Qe5+ {[%clk 0:00:05.4]} 66. Qf4+ {[%clk 0:00:03.9]}
66... Qxf4+ {[%clk 0:00:06.7]} 67. Kxf4 {[%clk 0:00:05.8]} 67... d2 {[%clk
0:00:06.6]} 68. Nc3 {[%clk 0:00:04.1]} 68... b4 {[%clk 0:00:07.9]} 69. Nd1
{[%clk 0:00:04.6]} 69... c3 {[%clk 0:00:09.4]} 70. Ke3 {[%clk 0:00:05.1]} 70...
c2 {[%clk 0:00:10.5]} 71. Kxd2 {[%clk 0:00:05.7]} 71... cxd1=Q+ {[%clk
0:00:12.1]} 72. Kxd1 {[%clk 0:00:05.1]} 72... Kh5 {[%clk 0:00:14]} 73. Kc2
{[%clk 0:00:07]} 73... Kxh4 {[%clk 0:00:15.9]} 74. Kb3 {[%clk 0:00:08.1]} 74...
Kxh3 {[%clk 0:00:17.8]} 75. Kxb4 {[%clk 0:00:09.9]} 75... g5 {[%clk 0:00:19.7]}
0-1